[Event "Titled Tuesday Blitz January 31 Late 2023"]
[White "Martinez Reyes, Pedro Ramon"]
[Black "Kraus, Tomas"]
[WhiteFideId "3901807"]
[BlackFideId "331708"]
[WhiteElo "2376"]
[BlackElo "2473"]
[Result "0-1"]
[Round "08"]
[TimeControl "180+2"]
[Date "2023.01.31"]
[WhiteClock "0:01:04"]
[BlackClock "0:00:04"]

1. e4 {[%clk 0:03:00]}  c5 {[%clk 0:02:58]} 2. Nf3 {[%clk 0:03:00]}  d6 {[%clk 0:02:43]} 3. d4 {[%clk 0:03:00]}  cxd4 {[%clk 0:02:42]} 4. Nxd4 {[%clk 0:03:01]}  Nf6 {[%clk 0:02:43]} 5. Nc3 {[%clk 0:03:01]}  a6 {[%clk 0:02:43]} 6. Be2 {[%clk 0:03:01]}  e5 {[%clk 0:02:42]} 7. Nf3 {[%clk 0:03:01]}  h6 {[%clk 0:02:41]} 8. Nd2 {[%clk 0:03:01]}  Be6 {[%clk 0:02:34]} 9. Nc4 {[%clk 0:02:59]}  Qc7 {[%clk 0:02:03]} 10. Ne3 {[%clk 0:02:59]}  Nbd7 {[%clk 0:02:01]} 11. O-O {[%clk 0:02:59]}  Be7 {[%clk 0:01:54]} 12. Ncd5 {[%clk 0:02:59]}  Bxd5 {[%clk 0:01:52]} 13. Nxd5 {[%clk 0:02:51]}  Nxd5 {[%clk 0:01:51]} 14. Qxd5 {[%clk 0:02:50]}  O-O {[%clk 0:01:19]} 15. c3 {[%clk 0:02:50]}  Qc6 {[%clk 0:01:11]} 16. Qd3 {[%clk 0:02:45]}  Nc5 {[%clk 0:01:10]} 17. Qh3 {[%clk 0:02:38]}  Nxe4 {[%clk 0:00:52]} 18. Be3 {[%clk 0:02:33]}  f5 {[%clk 0:00:47]} 19. f3 {[%clk 0:02:27]}  Ng5 {[%clk 0:00:38]} 20. Qh5 {[%clk 0:02:26]}  b5 {[%clk 0:00:33]} 21. Rad1 {[%clk 0:02:19]}  Rad8 {[%clk 0:00:32]} 22. f4 {[%clk 0:02:15]}  exf4 {[%clk 0:00:23]} 23. Bxf4 {[%clk 0:02:10]}  Ne4 {[%clk 0:00:21]} 24. Bxh6 {[%clk 0:02:02]}  gxh6 {[%clk 0:00:09]} 25. Qg6+ {[%clk 0:02:01]}  Kh8 {[%clk 0:00:08]} 26. Qxh6+ {[%clk 0:02:02]}  Kg8 {[%clk 0:00:09]} 27. Qg6+ {[%clk 0:02:02]}  Kh8 {[%clk 0:00:09]} 28. Rd3 {[%clk 0:02:03]}  Qc5+ {[%clk 0:00:09]} 29. Kh1 {[%clk 0:02:02]}  Ng5 {[%clk 0:00:04]} 30. h4 {[%clk 0:01:59]}  Rg8 {[%clk 0:00:02]} 31. Qh6+ {[%clk 0:01:58]}  Nh7 {[%clk 0:00:03]} 32. Bf3 {[%clk 0:01:50]}  Rg7 {[%clk 0:00:03]} 33. Re1 {[%clk 0:01:48]}  Rdg8 {[%clk 0:00:02]} 34. Rde3 {[%clk 0:01:48]}  Bf6 {[%clk 0:00:02]} 35. Re8 {[%clk 0:01:47]}  Be5 {[%clk 0:00:02]} 36. Qe6 {[%clk 0:01:41]}  Rxe8 {[%clk 0:00:02]} 37. Qxe8+ {[%clk 0:01:41]}  Rg8 {[%clk 0:00:03]} 38. Qe6 {[%clk 0:01:41]}  Qf2 {[%clk 0:00:03]} 39. Rxe5 {[%clk 0:01:30]}  Qxh4+ {[%clk 0:00:03]} 40. Kg1 {[%clk 0:01:30]}  dxe5 {[%clk 0:00:04]} 41. Qxe5+ {[%clk 0:01:31]}  Qf6 {[%clk 0:00:04]} 42. Qc7 {[%clk 0:01:27]}  Rf8 {[%clk 0:00:04]} 43. Kf1 {[%clk 0:01:26]}  Ng5 {[%clk 0:00:04]} 44. Bd5 {[%clk 0:01:25]}  Nh7 {[%clk 0:00:03]} 45. b3 {[%clk 0:01:25]}  f4 {[%clk 0:00:04]} 46. c4 {[%clk 0:01:25]}  Rd8 {[%clk 0:00:03]} 47. Ke2 {[%clk 0:01:21]}  Qb2+ {[%clk 0:00:03]} 48. Kf3 {[%clk 0:01:21]}  Qf6 {[%clk 0:00:04]} 49. Be4 {[%clk 0:01:21]}  Ng5+ {[%clk 0:00:03]} 50. Kg4 {[%clk 0:01:19]}  Nxe4 {[%clk 0:00:03]} 51. c5 {[%clk 0:01:18]}  Rg8+ {[%clk 0:00:03]} 52. Kf3 {[%clk 0:01:18]}  Ng5+ {[%clk 0:00:03]} 53. Ke2 {[%clk 0:01:17]}  Nh7 {[%clk 0:00:04]} 54. c6 {[%clk 0:01:17]}  Re8+ {[%clk 0:00:04]} 55. Kf3 {[%clk 0:01:15]}  Qc3+ {[%clk 0:00:03]} 56. Kg4 {[%clk 0:01:16]}  Qg3+ {[%clk 0:00:04]} 57. Kf5 {[%clk 0:01:16]}  Rf8+ {[%clk 0:00:04]} 58. Ke6 {[%clk 0:01:16]}  Qg6+ {[%clk 0:00:04]} 59. Kd5 {[%clk 0:01:16]}  Qf5+ {[%clk 0:00:04]} 60. Kd4 {[%clk 0:01:16]}  Qf6+ {[%clk 0:00:04]} 61. Kc5 {[%clk 0:01:16]}  Ng5 {[%clk 0:00:04]} 62. Qd7 {[%clk 0:01:13]}  Ne6+ {[%clk 0:00:03]} 63. Kb4 {[%clk 0:01:13]}  Nd4 {[%clk 0:00:04]} 64. c7 {[%clk 0:01:10]}  Nc6+ {[%clk 0:00:04]} 65. Kc5 {[%clk 0:01:09]}  Ne7 {[%clk 0:00:05]} 66. Qh3+ {[%clk 0:01:08]}  Kg8 {[%clk 0:00:04]} 67. Qg4+ {[%clk 0:01:08]}  Qg7 {[%clk 0:00:04]} 68. Qe6+ {[%clk 0:01:07]}  Qf7 {[%clk 0:00:05]} 69. Qg4+ {[%clk 0:01:07]}  Kh7 {[%clk 0:00:05]} 70. Qh3+ {[%clk 0:01:06]}  Kg7 {[%clk 0:00:05]} 71. Qg4+ {[%clk 0:01:06]}  Qg6 {[%clk 0:00:06]} 72. Qd7 {[%clk 0:01:06]}  Qf7 {[%clk 0:00:03]} 73. Qg4+ {[%clk 0:01:05]}  Ng6 {[%clk 0:00:03]} 74. c8=Q {[%clk 0:01:04]}  Qe7+ {[%clk 0:00:03]} 75. Kb6 {[%clk 0:01:02]}  Rxc8 {[%clk 0:00:03]} 76. Qxc8 {[%clk 0:01:03]}  Qd6+ {[%clk 0:00:03]} 77. Ka7 {[%clk 0:01:01]}  Kf6 {[%clk 0:00:03]} 78. Qxa6 {[%clk 0:01:01]}  Qxa6+ {[%clk 0:00:03]} 79. Kxa6 {[%clk 0:01:02]}  Nh4 {[%clk 0:00:03]} 80. Kxb5 {[%clk 0:01:01]}  Nxg2 {[%clk 0:00:03]} 81. a4 {[%clk 0:01:02]}  f3 {[%clk 0:00:03]} 82. a5 {[%clk 0:01:03]}  f2 {[%clk 0:00:04]} 83. a6 {[%clk 0:01:04]}  f1=Q+ {[%clk 0:00:04]} 84. Kb6 {[%clk 0:01:04]}  Qf2+ {[%clk 0:00:04]} 85. Kb7 {[%clk 0:01:04]}  Qf3+ {[%clk 0:00:04]} 86. Kb8 {[%clk 0:01:04]}  Qxb3+ {[%clk 0:00:04]} 87. Ka8 {[%clk 0:01:04]}  Qd5+ {[%clk 0:00:04]} 88. Kb8 {[%clk 0:01:04]}  Qb5+ {[%clk 0:00:04]} 89. Kc7 {[%clk 0:01:03]}  Qxa6 {[%clk 0:00:04]} 90. Kd8 {[%clk 0:01:04]}  Qd6+ {[%clk 0:00:04]} 91. Ke8 {[%clk 0:01:04]}  Qe7# {[%clk 0:00:04]} 0-1


[Site "https://www.chess.com"]

[Event "Titled Tuesday Blitz January 31 Late 2023"]
[White "Lucassen, Mickey"]
[Black "Martynov, Pavel"]
[WhiteFideId "12919110"]
[BlackFideId "4101260"]
[WhiteElo "2023"]
[BlackElo "2414"]
[Result "0-1"]
[Round "08"]
[TimeControl "180+2"]
[Date "2023.01.31"]
[WhiteClock "0:00:57"]
[BlackClock "0:01:27"]

1. e4 {[%clk 0:03:00]}  c5 {[%clk 0:02:59]} 2. Nf3 {[%clk 0:03:00]}  e6 {[%clk 0:03:00]} 3. d4 {[%clk 0:03:00]}  cxd4 {[%clk 0:03:00]} 4. Nxd4 {[%clk 0:03:01]}  Nc6 {[%clk 0:03:01]} 5. Nc3 {[%clk 0:03:02]}  Qc7 {[%clk 0:03:01]} 6. Be3 {[%clk 0:03:01]}  a6 {[%clk 0:03:02]} 7. Qd2 {[%clk 0:03:02]}  Nf6 {[%clk 0:03:02]} 8. O-O-O {[%clk 0:02:59]}  Bb4 {[%clk 0:03:03]} 9. f3 {[%clk 0:02:58]}  Ne5 {[%clk 0:03:03]} 10. Kb1 {[%clk 0:02:58]}  Bxc3 {[%clk 0:03:02]} 11. Qxc3 {[%clk 0:02:58]}  Qxc3 {[%clk 0:03:03]} 12. bxc3 {[%clk 0:02:58]}  d5 {[%clk 0:03:03]} 13. exd5 {[%clk 0:02:18]}  Nxd5 {[%clk 0:03:02]} 14. Bd2 {[%clk 0:02:19]}  b5 {[%clk 0:03:02]} 15. g3 {[%clk 0:02:10]}  Bb7 {[%clk 0:02:51]} 16. Be2 {[%clk 0:02:03]}  Rc8 {[%clk 0:02:48]} 17. Kb2 {[%clk 0:02:03]}  Nb6 {[%clk 0:02:42]} 18. Nb3 {[%clk 0:01:45]}  Nxf3 {[%clk 0:02:23]} 19. Na5 {[%clk 0:01:41]}  Bd5 {[%clk 0:02:18]} 20. Rhf1 {[%clk 0:01:39]}  Na4+ {[%clk 0:02:18]} 21. Kc1 {[%clk 0:01:37]}  Nxd2 {[%clk 0:02:04]} 22. Rxd2 {[%clk 0:01:36]}  Nxc3 {[%clk 0:02:04]} 23. Bf3 {[%clk 0:01:36]}  Nxa2+ {[%clk 0:01:56]} 24. Kb2 {[%clk 0:01:36]}  Nb4 {[%clk 0:01:56]} 25. c3 {[%clk 0:01:34]}  Bxf3 {[%clk 0:01:53]} 26. Rxf3 {[%clk 0:01:34]}  Nd5 {[%clk 0:01:50]} 27. Nb3 {[%clk 0:01:13]}  Ke7 {[%clk 0:01:44]} 28. Nd4 {[%clk 0:01:08]}  Rhd8 {[%clk 0:01:43]} 29. Re2 {[%clk 0:01:08]}  g6 {[%clk 0:01:37]} 30. h4 {[%clk 0:00:58]}  b4 {[%clk 0:01:32]} 31. c4 {[%clk 0:00:57]}  Rxc4 {[%clk 0:01:27]} 0-1


[Site "https://www.chess.com"]

[Event "Titled Tuesday Blitz January 31 Late 2023"]
[White "Shapiro, Viktor"]
[Black "Andreassen, Lars"]
[WhiteFideId "4175700"]
[BlackFideId "1504878"]
[WhiteElo "2192"]
[BlackElo "2168"]
[Result "1/2-1/2"]
[Round "08"]
[TimeControl "180+2"]
[Date "2023.01.31"]
[WhiteClock "0:01:10"]
[BlackClock "0:00:07"]

1. c4 {[%clk 0:03:00]}  e6 {[%clk 0:02:49]} 2. g3 {[%clk 0:03:00]}  d5 {[%clk 0:02:49]} 3. Bg2 {[%clk 0:03:01]}  Nf6 {[%clk 0:02:50]} 4. Nf3 {[%clk 0:03:01]}  Be7 {[%clk 0:02:47]} 5. O-O {[%clk 0:03:01]}  O-O {[%clk 0:02:48]} 6. b3 {[%clk 0:03:01]}  b6 {[%clk 0:02:47]} 7. Bb2 {[%clk 0:03:01]}  Bb7 {[%clk 0:02:48]} 8. d3 {[%clk 0:03:01]}  dxc4 {[%clk 0:02:46]} 9. dxc4 {[%clk 0:02:58]}  Nbd7 {[%clk 0:02:38]} 10. Nc3 {[%clk 0:02:57]}  Nc5 {[%clk 0:02:37]} 11. Qc2 {[%clk 0:02:56]}  a5 {[%clk 0:02:34]} 12. Rad1 {[%clk 0:02:53]}  Qc8 {[%clk 0:02:33]} 13. Ng5 {[%clk 0:02:46]}  Bxg2 {[%clk 0:02:29]} 14. Kxg2 {[%clk 0:02:46]}  h6 {[%clk 0:02:30]} 15. Nge4 {[%clk 0:02:44]}  Qb7 {[%clk 0:02:26]} 16. f3 {[%clk 0:02:44]}  Ncxe4 {[%clk 0:02:26]} 17. Nxe4 {[%clk 0:02:44]}  Nxe4 {[%clk 0:02:26]} 18. Qxe4 {[%clk 0:02:45]}  Qxe4 {[%clk 0:02:26]} 19. fxe4 {[%clk 0:02:45]}  Rad8 {[%clk 0:02:27]} 20. Rd3 {[%clk 0:02:41]}  f6 {[%clk 0:02:10]} 21. Rfd1 {[%clk 0:02:40]}  Kf7 {[%clk 0:02:10]} 22. g4 {[%clk 0:02:23]}  Rxd3 {[%clk 0:02:09]} 23. exd3 {[%clk 0:02:22]}  e5 {[%clk 0:02:02]} 24. d4 {[%clk 0:02:19]}  exd4 {[%clk 0:02:02]} 25. Rxd4 {[%clk 0:02:19]}  Ke6 {[%clk 0:02:02]} 26. Kf3 {[%clk 0:02:19]}  Rd8 {[%clk 0:01:58]} 27. Rd5 {[%clk 0:02:18]}  c6 {[%clk 0:01:57]} 28. Rxd8 {[%clk 0:02:18]}  Bxd8 {[%clk 0:01:58]} 29. h3 {[%clk 0:02:14]}  Bc7 {[%clk 0:01:57]} 30. Bd4 {[%clk 0:02:10]}  c5 {[%clk 0:01:53]} 31. Bc3 {[%clk 0:02:06]}  Be5 {[%clk 0:01:41]} 32. Bd2 {[%clk 0:02:02]}  Bd6 {[%clk 0:01:31]} 33. h4 {[%clk 0:02:02]}  g5 {[%clk 0:01:28]} 34. h5 {[%clk 0:01:56]}  Be5 {[%clk 0:01:26]} 35. Ke2 {[%clk 0:01:55]}  Bd4 {[%clk 0:01:25]} 36. Kd3 {[%clk 0:01:56]}  Ke5 {[%clk 0:01:16]} 37. Bc1 {[%clk 0:01:55]}  Ba1 {[%clk 0:01:12]} 38. a3 {[%clk 0:01:54]}  Ke6 {[%clk 0:01:08]} 39. b4 {[%clk 0:01:44]}  axb4 {[%clk 0:01:07]} 40. axb4 {[%clk 0:01:44]}  Bd4 {[%clk 0:01:03]} 41. Bd2 {[%clk 0:01:40]}  Ke5 {[%clk 0:01:01]} 42. bxc5 {[%clk 0:01:40]}  bxc5 {[%clk 0:00:58]} 43. Bc1 {[%clk 0:01:39]}  Ba1 {[%clk 0:00:56]} 44. Bd2 {[%clk 0:01:36]}  Bb2 {[%clk 0:00:55]} 45. Ke3 {[%clk 0:01:36]}  Bd4+ {[%clk 0:00:54]} 46. Kf3 {[%clk 0:01:36]}  Bb2 {[%clk 0:00:53]} 47. Be3 {[%clk 0:01:37]}  Bd4 {[%clk 0:00:52]} 48. Bd2 {[%clk 0:01:33]}  Bb2 {[%clk 0:00:51]} 49. Ke3 {[%clk 0:01:31]}  Bd4+ {[%clk 0:00:51]} 50. Kd3 {[%clk 0:01:31]}  Ba1 {[%clk 0:00:51]} 51. Be3 {[%clk 0:01:30]}  Kd6 {[%clk 0:00:46]} 52. Bf2 {[%clk 0:01:28]}  Be5 {[%clk 0:00:44]} 53. Kc2 {[%clk 0:01:27]}  Ba1 {[%clk 0:00:35]} 54. Kb3 {[%clk 0:01:27]}  Bd4 {[%clk 0:00:27]} 55. Bg3+ {[%clk 0:01:24]}  Be5 {[%clk 0:00:23]} 56. Be1 {[%clk 0:01:24]}  Bd4 {[%clk 0:00:21]} 57. Bg3+ {[%clk 0:01:21]}  Be5 {[%clk 0:00:21]} 58. Bf2 {[%clk 0:01:21]}  Bd4 {[%clk 0:00:21]} 59. Bxd4 {[%clk 0:01:17]}  cxd4 {[%clk 0:00:21]} 60. Kb4 {[%clk 0:01:16]}  Kc6 {[%clk 0:00:14]} 61. c5 {[%clk 0:01:13]}  d3 {[%clk 0:00:14]} 62. Kc3 {[%clk 0:01:13]}  Kxc5 {[%clk 0:00:13]} 63. Kxd3 {[%clk 0:01:13]}  Kc6 {[%clk 0:00:09]} 64. Kc4 {[%clk 0:01:13]}  Kd6 {[%clk 0:00:09]} 65. Kd4 {[%clk 0:01:13]}  Ke6 {[%clk 0:00:08]} 66. Kd3 {[%clk 0:01:13]}  Kd6 {[%clk 0:00:08]} 67. Ke2 {[%clk 0:01:12]}  Ke6 {[%clk 0:00:07]} 68. Kf3 {[%clk 0:01:12]}  Kd6 {[%clk 0:00:07]} 69. Ke2 {[%clk 0:01:11]}  Ke6 {[%clk 0:00:07]} 70. Kd3 {[%clk 0:01:11]}  Kd6 {[%clk 0:00:07]} 71. Kd4 {[%clk 0:01:11]}  Ke6 {[%clk 0:00:07]} 72. Kd3 {[%clk 0:01:10]} 1/2-1/2


[Site "https://www.chess.com"]

[Event "Titled Tuesday Blitz January 31 Late 2023"]
[White "Sztokbant, Bernardo Vainzoff"]
[Black "Pein, Jonathan"]
[WhiteFideId "2115956"]
[BlackFideId "417092"]
[WhiteElo "2213"]
[BlackElo "2265"]
[Result "0-1"]
[Round "08"]
[TimeControl "180+2"]
[Date "2023.01.31"]
[WhiteClock "0:00:03"]
[BlackClock "0:00:15"]

1. e4 {[%clk 0:03:00]}  g6 {[%clk 0:02:56]} 2. d4 {[%clk 0:02:59]}  Bg7 {[%clk 0:02:57]} 3. Nf3 {[%clk 0:03:00]}  d6 {[%clk 0:02:57]} 4. Nc3 {[%clk 0:03:01]}  a6 {[%clk 0:02:57]} 5. h3 {[%clk 0:03:02]}  e6 {[%clk 0:02:57]} 6. Be3 {[%clk 0:03:01]}  Ne7 {[%clk 0:02:58]} 7. Bd3 {[%clk 0:03:01]}  h6 {[%clk 0:02:58]} 8. Qd2 {[%clk 0:03:01]}  Nd7 {[%clk 0:02:57]} 9. O-O {[%clk 0:03:01]}  b6 {[%clk 0:02:57]} 10. Rfe1 {[%clk 0:03:02]}  Bb7 {[%clk 0:02:57]} 11. Ne2 {[%clk 0:03:01]}  Nf6 {[%clk 0:02:56]} 12. Ng3 {[%clk 0:03:01]}  c5 {[%clk 0:02:55]} 13. c3 {[%clk 0:03:01]}  Qc7 {[%clk 0:02:53]} 14. Rad1 {[%clk 0:03:01]}  Rd8 {[%clk 0:02:49]} 15. Bb1 {[%clk 0:02:59]}  Nd7 {[%clk 0:02:44]} 16. Qe2 {[%clk 0:02:54]}  O-O {[%clk 0:02:42]} 17. Nh2 {[%clk 0:02:52]}  e5 {[%clk 0:02:35]} 18. d5 {[%clk 0:02:51]}  c4 {[%clk 0:02:35]} 19. Qd2 {[%clk 0:02:46]}  Kh7 {[%clk 0:02:34]} 20. Ng4 {[%clk 0:02:46]}  Ng8 {[%clk 0:02:31]} 21. f4 {[%clk 0:02:32]}  exf4 {[%clk 0:02:29]} 22. Bxf4 {[%clk 0:02:33]}  Ne5 {[%clk 0:02:30]} 23. Nxe5 {[%clk 0:02:31]}  Bxe5 {[%clk 0:02:19]} 24. Bxe5 {[%clk 0:02:31]}  dxe5 {[%clk 0:02:20]} 25. Rf1 {[%clk 0:02:32]}  Kg7 {[%clk 0:02:13]} 26. Qe2 {[%clk 0:02:23]}  Nf6 {[%clk 0:02:09]} 27. Rf3 {[%clk 0:02:18]}  Bc8 {[%clk 0:02:05]} 28. Rdf1 {[%clk 0:02:15]}  Ne8 {[%clk 0:02:06]} 29. Qf2 {[%clk 0:02:11]}  Nd6 {[%clk 0:02:02]} 30. Rf6 {[%clk 0:02:05]}  Qe7 {[%clk 0:01:53]} 31. Qxb6 {[%clk 0:01:59]}  Bf5 {[%clk 0:01:38]} 32. exf5 {[%clk 0:00:38]}  Qxf6 {[%clk 0:01:30]} 33. fxg6 {[%clk 0:00:39]}  Qg5 {[%clk 0:01:29]} 34. Kh2 {[%clk 0:00:30]}  f5 {[%clk 0:00:58]} 35. Qc7+ {[%clk 0:00:26]}  Kxg6 {[%clk 0:00:56]} 36. Qc6 {[%clk 0:00:14]}  Kg7 {[%clk 0:00:52]} 37. Qc7+ {[%clk 0:00:13]}  Rf7 {[%clk 0:00:46]} 38. Nxf5+ {[%clk 0:00:06]}  Qxf5 {[%clk 0:00:46]} 39. Qxd8 {[%clk 0:00:03]}  Qxf1 {[%clk 0:00:44]} 40. Qxd6 {[%clk 0:00:03]}  Qxb1 {[%clk 0:00:28]} 41. Qxe5+ {[%clk 0:00:03]}  Kg8 {[%clk 0:00:26]} 42. Qe8+ {[%clk 0:00:03]}  Rf8 {[%clk 0:00:21]} 43. Qe6+ {[%clk 0:00:03]}  Kg7 {[%clk 0:00:20]} 44. Qe5+ {[%clk 0:00:02]}  Kg6 {[%clk 0:00:19]} 45. Qe6+ {[%clk 0:00:02]}  Rf6 {[%clk 0:00:19]} 46. Qg8+ {[%clk 0:00:03]}  Kf5 {[%clk 0:00:18]} 47. Qh7+ {[%clk 0:00:02]}  Rg6 {[%clk 0:00:18]} 48. Qf7+ {[%clk 0:00:03]}  Ke5 {[%clk 0:00:15]} 0-1


[Site "https://www.chess.com"]

[Event "Titled Tuesday Blitz January 31 Late 2023"]
[White "Villarreal, Agustin"]
[Black "Schekachikhin, Maksim"]
[WhiteFideId "125687"]
[BlackFideId "24177830"]
[WhiteElo "2299"]
[BlackElo "2371"]
[Result "0-1"]
[Round "08"]
[TimeControl "180+2"]
[Date "2023.01.31"]
[WhiteClock "0:00:01"]
[BlackClock "0:00:11"]

1. d4 {[%clk 0:03:00]}  Nf6 {[%clk 0:02:59]} 2. Nf3 {[%clk 0:03:01]}  d5 {[%clk 0:02:57]} 3. c4 {[%clk 0:03:02]}  e6 {[%clk 0:02:57]} 4. Nc3 {[%clk 0:03:02]}  a6 {[%clk 0:02:54]} 5. cxd5 {[%clk 0:03:03]}  exd5 {[%clk 0:02:54]} 6. Bg5 {[%clk 0:03:02]}  Be6 {[%clk 0:02:50]} 7. e3 {[%clk 0:03:02]}  Nbd7 {[%clk 0:02:48]} 8. Bd3 {[%clk 0:02:50]}  Bd6 {[%clk 0:02:47]} 9. O-O {[%clk 0:02:51]}  c6 {[%clk 0:02:45]} 10. Bf4 {[%clk 0:02:51]}  Qb8 {[%clk 0:02:45]} 11. Bxd6 {[%clk 0:02:50]}  Qxd6 {[%clk 0:02:45]} 12. Rb1 {[%clk 0:02:50]}  O-O {[%clk 0:02:43]} 13. b4 {[%clk 0:02:50]}  Rfe8 {[%clk 0:02:37]} 14. a4 {[%clk 0:02:50]}  Bg4 {[%clk 0:02:32]} 15. h3 {[%clk 0:02:48]}  Bh5 {[%clk 0:02:32]} 16. Be2 {[%clk 0:02:46]}  Bxf3 {[%clk 0:02:28]} 17. Bxf3 {[%clk 0:02:46]}  b5 {[%clk 0:02:23]} 18. a5 {[%clk 0:02:42]}  Re7 {[%clk 0:02:19]} 19. Na2 {[%clk 0:02:41]}  Qc7 {[%clk 0:02:10]} 20. Rc1 {[%clk 0:02:40]}  Qb7 {[%clk 0:02:00]} 21. Rc3 {[%clk 0:02:40]}  Ne8 {[%clk 0:01:59]} 22. Qc2 {[%clk 0:02:40]}  Nb8 {[%clk 0:01:54]} 23. e4 {[%clk 0:02:26]}  dxe4 {[%clk 0:01:53]} 24. Bxe4 {[%clk 0:02:27]}  g6 {[%clk 0:01:53]} 25. Nc1 {[%clk 0:02:14]}  Nd6 {[%clk 0:01:52]} 26. Bf3 {[%clk 0:02:11]}  Nc4 {[%clk 0:01:51]} 27. Nb3 {[%clk 0:02:10]}  Qd7 {[%clk 0:01:50]} 28. Nc5 {[%clk 0:02:08]}  Qc7 {[%clk 0:01:38]} 29. Rd1 {[%clk 0:01:49]}  Nd7 {[%clk 0:01:37]} 30. Nb3 {[%clk 0:01:44]}  Rae8 {[%clk 0:01:34]} 31. Qc1 {[%clk 0:01:40]}  Qd6 {[%clk 0:01:29]} 32. Nc5 {[%clk 0:01:32]}  Nxc5 {[%clk 0:01:28]} 33. dxc5 {[%clk 0:01:31]}  Qc7 {[%clk 0:01:21]} 34. g3 {[%clk 0:01:25]}  h5 {[%clk 0:01:17]} 35. h4 {[%clk 0:01:24]}  Ne5 {[%clk 0:01:16]} 36. Be2 {[%clk 0:01:18]}  Nd7 {[%clk 0:01:10]} 37. Bf3 {[%clk 0:00:57]}  Ne5 {[%clk 0:01:10]} 38. Be2 {[%clk 0:00:54]}  Qc8 {[%clk 0:01:06]} 39. Re3 {[%clk 0:00:53]}  Qh3 {[%clk 0:01:04]} 40. Bf1 {[%clk 0:00:46]}  Qf5 {[%clk 0:01:03]} 41. Be2 {[%clk 0:00:32]}  Nd7 {[%clk 0:00:35]} 42. Rxe7 {[%clk 0:00:16]}  Rxe7 {[%clk 0:00:36]} 43. Bd3 {[%clk 0:00:15]}  Qg4 {[%clk 0:00:34]} 44. Qg5 {[%clk 0:00:14]}  Qxd1+ {[%clk 0:00:31]} 45. Kg2 {[%clk 0:00:15]}  Qxd3 {[%clk 0:00:20]} 46. Qxe7 {[%clk 0:00:15]}  Qd5+ {[%clk 0:00:20]} 47. Kh2 {[%clk 0:00:15]}  Ne5 {[%clk 0:00:19]} 48. g4 {[%clk 0:00:09]}  Nxg4+ {[%clk 0:00:19]} 49. Kg1 {[%clk 0:00:09]}  Qe5 {[%clk 0:00:16]} 50. Qd8+ {[%clk 0:00:08]}  Kg7 {[%clk 0:00:16]} 51. Kf1 {[%clk 0:00:06]}  Qa1+ {[%clk 0:00:13]} 52. Kg2 {[%clk 0:00:05]}  Qf6 {[%clk 0:00:12]} 53. Qd2 {[%clk 0:00:03]}  Qxh4 {[%clk 0:00:11]} 54. Qd4+ {[%clk 0:00:01]}  Qf6 {[%clk 0:00:11]} 0-1


[Site "https://www.chess.com"]

[Event "Titled Tuesday Blitz January 31 Late 2023"]
[White "Defend, Balint"]
[Black "Sanchez, Robert"]
[WhiteFideId "17004853"]
[BlackFideId "2034360"]
[WhiteElo "1673"]
[BlackElo "1966"]
[Result "1-0"]
[Round "08"]
[TimeControl "180+2"]
[Date "2023.01.31"]
[WhiteClock "0:01:18"]
[BlackClock "0:00:47"]

1. e4 {[%clk 0:03:00]}  e6 {[%clk 0:02:54]} 2. d4 {[%clk 0:03:00]}  d5 {[%clk 0:02:54]} 3. Nc3 {[%clk 0:03:01]}  Nf6 {[%clk 0:02:54]} 4. e5 {[%clk 0:03:01]}  Nfd7 {[%clk 0:02:53]} 5. f4 {[%clk 0:03:02]}  c5 {[%clk 0:02:53]} 6. Nf3 {[%clk 0:03:01]}  Nc6 {[%clk 0:02:53]} 7. Ne2 {[%clk 0:03:01]}  cxd4 {[%clk 0:02:51]} 8. Nexd4 {[%clk 0:03:02]}  Be7 {[%clk 0:02:45]} 9. c3 {[%clk 0:03:03]}  Nc5 {[%clk 0:02:45]} 10. Be2 {[%clk 0:03:03]}  f6 {[%clk 0:02:42]} 11. exf6 {[%clk 0:03:02]}  Bxf6 {[%clk 0:02:42]} 12. O-O {[%clk 0:02:59]}  O-O {[%clk 0:02:41]} 13. Be3 {[%clk 0:02:59]}  Ne4 {[%clk 0:02:41]} 14. Bd3 {[%clk 0:02:59]}  Nd6 {[%clk 0:02:34]} 15. Nxc6 {[%clk 0:02:55]}  bxc6 {[%clk 0:02:33]} 16. Ne5 {[%clk 0:02:55]}  Bd7 {[%clk 0:02:25]} 17. Qh5 {[%clk 0:02:47]}  Nf5 {[%clk 0:02:24]} 18. Bc5 {[%clk 0:02:40]}  g6 {[%clk 0:02:05]} 19. Nxg6 {[%clk 0:02:31]}  hxg6 {[%clk 0:02:03]} 20. Qxg6+ {[%clk 0:02:32]}  Bg7 {[%clk 0:02:01]} 21. Bxf8 {[%clk 0:02:32]}  Qxf8 {[%clk 0:02:00]} 22. g4 {[%clk 0:02:30]}  Qc5+ {[%clk 0:01:33]} 23. Kh1 {[%clk 0:02:30]}  Qe3 {[%clk 0:01:28]} 24. Rad1 {[%clk 0:02:17]}  Be8 {[%clk 0:01:27]} 25. Qg5 {[%clk 0:02:11]}  Nd6 {[%clk 0:01:07]} 26. Qh4 {[%clk 0:01:41]}  Ne4 {[%clk 0:01:04]} 27. Qe1 {[%clk 0:01:40]}  Qh3 {[%clk 0:01:01]} 28. Bxe4 {[%clk 0:01:38]}  dxe4 {[%clk 0:01:01]} 29. Qxe4 {[%clk 0:01:38]}  Rd8 {[%clk 0:00:50]} 30. Qxe6+ {[%clk 0:01:35]}  Kh8 {[%clk 0:00:50]} 31. Qe2 {[%clk 0:01:18]}  Rxd1 {[%clk 0:00:49]} 32. Qxe8+ {[%clk 0:01:18]}  Kh7 {[%clk 0:00:47]} 33. Qe4+ {[%clk 0:01:18]} 1-0


[Site "https://www.chess.com"]